fUSD/lending_fUSD_20250504
["ID","MTS","AMOUNT","RATE_DAILY","PERIOD"]
[359851517,1746372657984,-450.0,0.00019972,2]
[359851518,1746372657993,-1036.81,0.00019972,2]
[359851519,1746372658002,-476.85,0.00019972,2]
[359851520,1746372658012,-1151.66,0.00019972,2]
[359851521,1746372658021,-450.0,0.00019972,2]
[359851522,1746372658030,-450.0,0.00019972,2]
[359851523,1746372658039,-203.8084593,0.00019973,2]
[359851524,1746372658049,-500.0,0.00019984,2]
[359851525,1746372658058,-187.86392371,0.00019985,2]
[359851526,1746372658067,-356.82,0.00019985,2]
[359851527,1746372658077,-99236.016,0.00019985,2]
[359851528,1746372658086,-671.4633032,0.00019985,2]
[359851529,1746372658094,-9139.8089253,0.00019985,2]
[359851530,1746372658104,-225.71169747,0.00019985,2]
[359851531,1746372658113,-500.0,0.00019985,2]
[359851532,1746372658123,-260.74186869,0.00019985,2]
[359851533,1746372658132,-425.90202331,0.00019985,2]
[359851534,1746372658143,-500.0,0.00019985,2]
[359851535,1746372658153,-500.0,0.00019985,2]
[359851536,1746372658164,-500.0,0.00019985,2]
[359851537,1746372658174,-513.65933891,0.00019985,2]
[359851538,1746372658183,-500.0,0.00019985,2]
[359851539,1746372658193,-500.0,0.00019985,2]
[359851540,1746372658202,-500.0,0.00019985,2]
[359851541,1746372658213,-500.0,0.00019985,2]
[359851542,1746372658223,-500.0,0.00019985,2]
[359851543,1746372658232,-500.0,0.00019985,2]
[359851544,1746372658241,-500.0,0.00019985,2]
[359851545,1746372658250,-500.0,0.00019985,2]
[359851546,1746372658259,-500.0,0.00019985,2]
[359851547,1746372658269,-500.0,0.00019985,2]
[359851548,1746372658278,-191.75620072,0.00019985,2]
[359851549,1746372658287,-151.0,0.00019985,2]
[359851550,1746372658297,-1897.9856211,0.00019985,2]
[359851551,1746372658306,-151.0,0.00019985,2]
[359851552,1746372658316,-151.0,0.00019986,2]
[359851553,1746372658328,-151.0,0.00019986,2]
[359851554,1746372658338,-151.0,0.00019986,2]
[359851555,1746372658348,-101307.6095999,0.00019986,2]
[359851556,1746372658357,-103379.2031999,0.00019986,2]
[359851557,1746372658368,-28242.36137983,0.00019986,2]
[359851558,1746372658573,-2318.37999989,0.00019986,2]
[359851559,1746372658584,-1438.245,0.00019986,2]
[359851560,1746372658606,-254.25718904,0.00019753,2]
[359851561,1746372658618,-215.74281096,0.00019753,2]
[359851562,1746372658627,-450.0,0.0001978,2]
[359851563,1746372658636,-23438.86757444,0.00019986,2]
[359851564,1746372658815,-450.0,0.00019808,2]
[359851565,1746372658826,-550.0,0.00019986,2]
[359851566,1746372659072,-470.0,0.00019726,2]
[359851567,1746372659081,-450.0,0.00019726,2]
[359851568,1746372659091,-450.0,0.00019726,2]
[359851569,1746372659100,-450.0,0.00019726,2]
[359851570,1746372659110,-450.0,0.00019726,2]
[359851571,1746372659120,-450.0,0.00019726,2]
[359851572,1746372659129,-450.0,0.00019726,2]
[359851573,1746372659139,-450.0,0.00019726,2]
[359851574,1746372659148,-450.0,0.00019753,2]
[359851575,1746372659158,-450.0,0.00019753,2]
[359851576,1746372659167,-450.0,0.00019753,2]
[359851577,1746372659177,-450.0,0.00019753,2]
[359851578,1746372659186,-470.0,0.00019753,2]
[359851579,1746372659195,-489.86304504,0.00019753,2]
[359851580,1746372659206,-450.0,0.0001978,2]
[359851581,1746372659215,-450.0,0.0001978,2]
[359851582,1746372659224,-450.0,0.0001978,2]
[359851583,1746372659234,-191.66,0.00019808,2]
[359851584,1746372659244,-450.0,0.00019808,2]
[359851585,1746372659254,-470.0,0.00019835,2]
[359851586,1746372659263,-13549.42922215,0.00019986,2]
[359851587,1746372659356,-35913.51362359,0.00019986,2]
[359851588,1746372659365,-11655.76298094,0.00019986,2]
[359851589,1746372659386,-450.0,0.00019726,2]
[359851590,1746372659398,-47467.50000001,0.00019986,2]
[359851591,1746372659411,-551.91721326,0.00019986,2]
[359851592,1746372659677,-47847.21020569,0.00019986,2]
[359851593,1746372659687,-685.4803823,0.00019986,2]
[359851594,1746372659696,-699.4974613,0.00019986,2]
[359851595,1746372659706,-713.5145404,0.00019986,2]
[359851596,1746372659715,-727.5316194,0.00019986,2]
[359851597,1746372659725,-151.0,0.00019986,2]
[359851598,1746372659734,-151.0,0.00019986,2]
[359851599,1746372659744,-9330.6062834,0.00019986,2]
[359851600,1746372659753,-9521.4036414,0.00019986,2]
[359851601,1746372659763,-9712.2009995,0.00019986,2]
[359851602,1746372659773,-9902.9983575,0.00019986,2]
[359851603,1746372659782,-151.0,0.00019986,2]
[359851604,1746372659792,-151.0,0.00019986,2]
[359851605,1746372659802,-151.0,0.00019986,2]
[359851606,1746372659811,-151.0,0.00019986,2]
[359851607,1746372659821,-1929.9483635,0.00019986,2]
[359851608,1746372659830,-421.31845571,0.00019986,2]
[359851609,1746372659848,-450.0,0.00019753,2]
[359851610,1746372659858,-1540.59265019,0.00019986,2]
[359851611,1746372659868,-534.47530041,0.00019986,2]
[359851612,1746372659884,-1459.39854799,0.00019986,2]
[359851613,1746372659894,-2025.8365908,0.00019986,2]
[359851614,1746372659903,-151.0,0.00019986,2]
[359851615,1746372659912,-1633.51794505,0.00019991,2]
[359851616,1746372670827,-500.0,0.00019625,2]
[359851617,1746372670859,-151.83015872,0.00019625,2]
[359851618,1746372670880,-300.0,0.00019725,2]
[359851619,1746372670902,-450.0,0.00019726,2]
[359851620,1746372670923,-450.0,0.00019726,2]
[359851621,1746372670944,-450.0,0.00019726,2]
[359851622,1746372670965,-450.0,0.00019726,2]
[359851623,1746372670987,-388.67368502,0.00019726,2]
[359851624,1746372671008,-450.0,0.00019726,2]
[359851625,1746372671028,-450.0,0.00019726,2]
[359851626,1746372671048,-567.92,0.00019726,2]
[359851627,1746372671072,-391.57615626,0.00019726,2]
[359851628,1746372682026,-500.0,0.00019625,2]
[359851629,1746372682056,-500.0,0.00019625,2]
[359851630,1746372682087,-577.3287516,0.00019625,2]
[359851631,1746372682116,-500.0,0.00019625,2]
[359851632,1746372682145,-500.0,0.00019625,2]
[359851633,1746372682176,-500.0,0.00019625,2]
[359851634,1746372682200,-58.42384374,0.00019726,2]
[359851635,1746372682221,-476.75711852,0.00019726,2]
[359851636,1746372682241,-450.0,0.00019726,2]
[359851637,1746372682263,-450.0,0.00019726,2]
[359851638,1746372682284,-487.49028614,0.00019726,2]
[359851639,1746372705758,465.23,0.00018936,2]
[359851640,1746372705957,465.23,0.00018941,2]
[359851641,1746372706173,465.23,0.00018946,2]
[359851642,1746372706395,465.23,0.00018951,2]
[359851643,1746372706695,465.23,0.00018956,2]
[359851644,1746372707020,465.23,0.00018961,2]
[359851645,1746372707221,465.23,0.00018966,2]
[359851646,1746372707435,465.23,0.00018971,2]
[359851647,1746372707673,200.0,0.00018976,2]
[359851648,1746372707907,265.23,0.00018976,2]
[359851649,1746372708102,465.23,0.00018981,2]
[359851650,1746372708334,465.23,0.00018986,2]
[359851651,1746372708536,465.23,0.0001899,2]
[359851652,1746372708733,465.23,0.00018995,2]
[359851653,1746372709155,465.23,0.00019,2]
[359851654,1746372709370,465.23,0.00019005,2]
[359851655,1746372709603,465.23,0.0001901,2]
[359851656,1746372709970,465.23,0.00019015,2]
[359851657,1746372710016,465.23,0.0001902,2]
[359851658,1746372710216,465.23,0.00019025,2]
[359851659,1746372710432,465.23,0.0001903,2]
[359851660,1746372745691,181.57,0.00018906,2]
[359851661,1746372749071,4000.0,0.00018906,2]
[359851663,1746372773414,929.86,0.00018906,2]
[359851666,1746372889891,250.0,0.00017,2]
[359851667,1746372891211,226.07297599,0.00019,2]
[359851668,1746372891234,73.92702401,0.00019,2]
[359851669,1746372905107,1104.47,0.00019,2]
[359851670,1746373029211,150.0,0.00018766,2]
[359851671,1746373117842,165.44,0.00019334,2]
[359851672,1746373165776,1543.38,0.00018768,2]
[359851673,1746373213233,470.0,0.00027945,30]
[359851674,1746373306457,2833.13,0.00018782,2]
[359851675,1746373317186,1173.74,0.00016878,2]
[359851676,1746373317278,1173.74,0.00019142,2]
[359851677,1746373361053,29625.08,0.00018782,2]
[359851678,1746373379151,262.82,0.00018774,2]
[359851679,1746373379516,-200.0,0.00019518,2]
[359851680,1746373380370,348.92,0.00018916,2]
[359851681,1746373407312,250.0,0.00018766,2]
[359851682,1746373411397,155.09,0.00018766,2]
[359851683,1746373423687,2517.86,0.00018759,2]
[359851698,1746373638648,200.0,0.00018779,2]
[359851700,1746373815814,2862.64,0.00018768,2]
[359851707,1746373832156,-197.7415231,0.00019525,2]
[359851708,1746373832165,-250.0,0.00019534,2]
[359851709,1746373832175,-200.0,0.00019534,2]
[359851710,1746373832184,-200.0,0.00019542,2]
[359851711,1746373832194,-207.4,0.00019614,2]
[359851712,1746373832203,-1200.0,0.00019625,2]
[359851713,1746373832212,-300.0,0.00019625,2]
[359851714,1746373832221,-300.0,0.00019625,2]
[359851715,1746373832234,-1886.58059299,0.00019626,2]
[359851716,1746373832245,-177.52336652,0.00019626,2]
[359851717,1746373832254,-183.35246057,0.00019626,2]
[359851718,1746373832264,-3113.2297,0.00019626,2]
[359851719,1746373832273,-2752.3957,0.00019626,2]
[359851720,1746373832282,-284.26671701,0.00019656,2]
[359851721,1746373832291,-1284.72788288,0.00019656,2]
[359851722,1746373832303,-601.85271008,0.00019656,2]
[359851723,1746373832312,-196.66214301,0.0001968,2]
[359851724,1746373832321,-953.64,0.00019686,2]
[359851725,1746373832330,-284.26671701,0.00019687,2]
[359851726,1746373832339,-1256.2978319,0.00019687,2]
[359851727,1746373832354,-630.28276106,0.00019687,2]
[359851728,1746373832364,-2551.88636208,0.00019716,2]
[359851729,1746373832373,-284.26671701,0.00019717,2]
[359851730,1746373832382,-1886.58059296,0.00019717,2]
[359851731,1746373832391,-412.76787947,0.00019725,2]
[359851732,1746373832401,-228.94520574,0.00019725,2]
[359851733,1746373832411,-500.0,0.00019725,2]
[359851734,1746373832420,-500.0,0.00019725,2]
[359851735,1746373832429,-500.0,0.00019725,2]
[359851736,1746373832439,-500.0,0.00019725,2]
[359851737,1746373832448,-500.0,0.00019725,2]
[359851738,1746373832457,-500.0,0.00019725,2]
[359851739,1746373832466,-500.0,0.00019725,2]
[359851740,1746373832475,-500.0,0.00019725,2]
[359851741,1746373832485,-500.0,0.00019725,2]
[359851742,1746373832495,-500.0,0.00019725,2]
[359851743,1746373832504,-500.0,0.00019725,2]
[359851744,1746373832513,-500.0,0.00019725,2]
[359851745,1746373832523,-500.0,0.00019725,2]
[359851746,1746373832532,-500.0,0.00019725,2]
[359851747,1746373832542,-500.0,0.00019725,2]
[359851748,1746373832551,-500.0,0.00019725,2]
[359851749,1746373832561,-500.0,0.00019725,2]
[359851750,1746373832570,-500.0,0.00019725,2]
[359851751,1746373832579,-500.0,0.00019725,2]
[359851753,1746373832588,-500.0,0.00019725,2]
[359851755,1746373832597,-500.0,0.00019725,2]
[359851757,1746373832606,-500.0,0.00019725,2]
[359851759,1746373832615,-500.0,0.00019725,2]
[359851761,1746373832625,-500.0,0.00019725,2]
[359851763,1746373832634,-500.0,0.00019725,2]
[359851765,1746373832644,-500.0,0.00019725,2]
[359851767,1746373832653,-500.0,0.00019725,2]
[359851769,1746373832663,-500.0,0.00019725,2]
[359851770,1746373832672,-500.0,0.00019725,2]
[359851772,1746373832682,-500.0,0.00019725,2]
[359851773,1746373832691,-415.64248168,0.00019725,2]
[359851775,1746373832703,-84.35751832,0.00019725,2]
[359851777,1746373832713,-500.0,0.00019725,2]
[359851779,1746373832722,-500.0,0.00019725,2]
[359851781,1746373832732,-500.0,0.00019725,2]
[359851782,1746373832741,-500.0,0.00019725,2]
[359851784,1746373832751,-116.11245768,0.00019725,2]
[359851786,1746373832762,-383.88754232,0.00019725,2]
[359851788,1746373832771,-500.0,0.00019725,2]
[359851790,1746373832781,-500.0,0.00019725,2]
[359851792,1746373832790,-423.43527241,0.00019725,2]
[359851793,1746373832799,-500.0,0.00019725,2]
[359851795,1746373832808,-500.0,0.00019725,2]
[359851797,1746373832818,-500.0,0.00019725,2]
[359851799,1746373832828,-500.0,0.00019725,2]
[359851801,1746373832837,-500.0,0.00019725,2]
[359851802,1746373832847,-500.0,0.00019725,2]
[359851804,1746373832856,-500.0,0.00019725,2]
[359851806,1746373832866,-500.0,0.00019725,2]
[359851808,1746373832875,-241.58255943,0.00019725,2]
[359851809,1746373832885,-500.0,0.00019725,2]
[359851811,1746373832894,-490.0,0.00019726,2]
[359851813,1746373832903,-450.0,0.00019726,2]
[359851815,1746373832913,-450.0,0.00019726,2]
[359851817,1746373832923,-493.10041977,0.00019726,2]
[359851818,1746373832932,-490.0,0.00019726,2]
[359851820,1746373832941,-450.0,0.00019726,2]
[359851822,1746373832950,-119.17896465,0.00019726,2]
[359851824,1746373832962,-330.82103535,0.00019726,2]
[359851826,1746373832972,-128.05896465,0.00019726,2]
[359851828,1746373832984,-321.94103535,0.00019726,2]
[359851830,1746373832994,-490.0,0.00019726,2]
[359851831,1746373833003,-210.567123,0.00019726,2]
[359851833,1746373833013,-450.0,0.00019726,2]
[359851835,1746373833022,-450.0,0.00019726,2]
[359851837,1746373833033,-450.0,0.00019726,2]
[359851839,1746373833043,-450.0,0.00019726,2]
[359851840,1746373833056,-450.0,0.00019726,2]
[359851842,1746373833066,-582.94309495,0.00019726,2]
[359851844,1746373833076,-450.0,0.00019726,2]
[359851846,1746373833086,-450.0,0.00019726,2]
[359851847,1746373833096,-333.8693183,0.00019726,2]
[359851849,1746373833108,-116.1306817,0.00019726,2]
[359851851,1746373833118,-450.0,0.00019726,2]
[359851853,1746373833127,-450.0,0.00019726,2]
[359851855,1746373833137,-450.0,0.00019726,2]
[359851857,1746373833147,-383.8601003,0.00019726,2]
[359851859,1746373833156,-450.0,0.00019726,2]
[359851861,1746373833166,-450.0,0.00019726,2]
[359851862,1746373833175,-450.0,0.00019726,2]
[359851864,1746373833185,-354.18,0.00019726,2]
[359851866,1746373833194,-450.0,0.00019726,2]
[359851868,1746373833203,-29.759868,0.00019726,2]
[359851870,1746373833215,-420.240132,0.00019726,2]
[359851872,1746373833225,-157.33577194,0.00019726,2]
[359851874,1746373833234,-450.0,0.00019726,2]
[359851875,1746373833244,-450.0,0.00019726,2]
[359851877,1746373833253,-450.0,0.00019726,2]
[359851879,1746373833263,-450.0,0.00019726,2]
[359851881,1746373833272,-450.0,0.00019726,2]
[359851883,1746373833282,-450.0,0.00019726,2]
[359851885,1746373833292,-475.92393356,0.00019726,2]
[359851886,1746373833301,-597.34863573,0.00019726,2]
[359851888,1746373833310,-450.0,0.00019726,2]
[359851890,1746373833319,-450.0,0.00019726,2]
[359851892,1746373833328,-450.0,0.00019726,2]
[359851894,1746373833338,-450.0,0.00019726,2]
[359851895,1746373833347,-450.0,0.00019726,2]
[359851897,1746373833357,-47.20441208,0.00019726,2]
[359851919,1746373833592,-402.79558792,0.00019726,2]
[359851921,1746373833603,-62.11905149,0.00019726,2]
[359852027,1746373838210,-387.88094851,0.00019726,2]
[359852028,1746373838220,-470.0,0.00019726,2]
[359852030,1746373838229,-450.0,0.00019726,2]
[359852031,1746373838238,-450.0,0.00019726,2]
[359852032,1746373838248,-450.0,0.00019726,2]
[359852033,1746373838257,-530.84746163,0.00019726,2]
[359852034,1746373838266,-450.0,0.00019726,2]
[359852035,1746373838275,-450.0,0.00019726,2]
[359852036,1746373838284,-470.0,0.00019726,2]
[359852037,1746373838294,-472.8832217,0.00019726,2]
[359852038,1746373838303,-450.0,0.00019726,2]
[359852039,1746373838312,-450.0,0.00019726,2]
[359852040,1746373838323,-450.0,0.00019726,2]
[359852041,1746373838334,-528.83186515,0.00019726,2]
[359852042,1746373838344,-450.0,0.00019726,2]
[359852043,1746373838353,-572.58770597,0.00019726,2]
[359852044,1746373838362,-450.0,0.00019726,2]
[359852045,1746373838371,-470.0,0.00019726,2]
[359852046,1746373838380,-450.0,0.00019726,2]
[359852047,1746373838389,-450.0,0.00019726,2]
[359852048,1746373838399,-450.0,0.00019726,2]
[359852049,1746373838408,-40.85297613,0.00019726,2]
[359852050,1746373838421,-387.72136,0.00019726,2]
[359852051,1746373838432,-41.42566387,0.00019726,2]
[359852052,1746373838442,-530.70042877,0.00019726,2]
[359852053,1746373838454,-450.0,0.00019726,2]
[359852054,1746373838464,-450.0,0.00019726,2]
[359852055,1746373838474,-450.0,0.00019726,2]
[359852056,1746373838483,-450.0,0.00019726,2]
[359852057,1746373838493,-450.0,0.00019726,2]
[359852058,1746373838502,-450.0,0.00019726,2]
[359852059,1746373838511,-470.62025832,0.00019726,2]
[359852060,1746373838520,-467.10237204,0.00019726,2]
[359852061,1746373838530,-450.0,0.00019726,2]
[359852062,1746373838540,-470.0,0.00019726,2]
[359852063,1746373838549,-480.01030359,0.00019726,2]
[359852064,1746373838558,-450.0,0.00019726,2]
[359852065,1746373838568,-450.0,0.00019726,2]
[359852066,1746373838578,-475.72405936,0.00019726,2]
[359852068,1746373838587,-523.95698963,0.00019726,2]
[359852070,1746373838596,-470.0,0.00019726,2]
[359852072,1746373838607,-450.0,0.00019726,2]
[359852074,1746373838616,-450.0,0.00019726,2]
[359852076,1746373838628,-450.0,0.00019726,2]
[359852078,1746373838638,-172.48471003,0.00019726,2]
[359852079,1746373838646,-450.0,0.00019726,2]
[359852081,1746373838655,-161.80664854,0.00019726,2]
[359852083,1746373838665,-450.0,0.00019726,2]
[359852085,1746373838674,-450.0,0.00019726,2]
[359852087,1746373838684,-314.24285905,0.00019726,2]
[359852090,1746373838702,-135.75714095,0.00019726,2]
[359852092,1746373838711,-450.0,0.00019726,2]
[359852094,1746373838721,-213.38009612,0.00019726,2]
[359852097,1746373838735,-263.49119407,0.00019726,2]
[359852099,1746373838744,-500.0,0.00019726,2]
[359852100,1746373838754,-450.0,0.00019726,2]
[359852102,1746373838763,-450.0,0.00019726,2]
[359852104,1746373838772,-484.24302524,0.00019726,2]
[359852106,1746373838782,-450.0,0.00019726,2]
[359852108,1746373838791,-463.64256964,0.00019726,2]
[359852110,1746373838801,-450.0,0.00019726,2]
[359852112,1746373838810,-500.0,0.00019726,2]
[359852114,1746373838820,-450.0,0.00019726,2]
[359852116,1746373838830,-450.0,0.00019726,2]
[359852119,1746373838840,-190.80929839,0.00019726,2]
[359852121,1746373838849,-450.0,0.00019726,2]
[359852123,1746373838859,-450.0,0.00019726,2]
[359852124,1746373838868,-450.0,0.00019726,2]
[359852126,1746373838877,-500.0,0.00019726,2]
[359852128,1746373838886,-450.0,0.00019726,2]
[359852130,1746373838895,-450.0,0.00019726,2]
[359852132,1746373838905,-450.0,0.00019726,2]
[359852134,1746373838915,-450.0,0.00019726,2]
[359852136,1746373838925,-450.0,0.00019726,2]
[359852138,1746373838935,-500.0,0.00019726,2]
[359852140,1746373838945,-470.0,0.00019726,2]
[359852143,1746373838954,-450.0,0.00019726,2]
[359852144,1746373838964,-535.04699561,0.00019726,2]
[359852146,1746373838973,-450.0,0.00019726,2]
[359852148,1746373838983,-450.0,0.00019726,2]
[359852150,1746373838992,-450.0,0.00019726,2]
[359852152,1746373839001,-450.0,0.00019726,2]
[359852154,1746373839010,-450.0,0.00019726,2]
[359852156,1746373839020,-450.0,0.00019726,2]
[359852158,1746373839029,-450.0,0.00019726,2]
[359852160,1746373839039,-450.0,0.00019726,2]
[359852162,1746373839048,-450.0,0.00019726,2]
[359852164,1746373839060,-486.91,0.00019726,2]
[359852166,1746373839070,-474.25055234,0.00019726,2]
[359852168,1746373839079,-450.0,0.00019726,2]
[359852170,1746373839088,-470.0,0.00019726,2]
[359852172,1746373839099,-450.0,0.00019726,2]
[359852174,1746373839108,-450.0,0.00019726,2]
[359852176,1746373839117,-450.0,0.00019726,2]
[359852178,1746373839127,-450.0,0.00019726,2]
[359852180,1746373839136,-450.0,0.00019726,2]
[359852182,1746373839145,-450.0,0.00019726,2]
[359852184,1746373839154,-450.0,0.00019726,2]
[359852186,1746373839163,-450.0,0.00019726,2]
[359852188,1746373839173,-450.0,0.00019726,2]
[359852190,1746373839182,-515.58116033,0.00019726,2]
[359852191,1746373839190,-470.0,0.00019726,2]
[359852193,1746373839199,-198.21942705,0.00019726,2]
[359852195,1746373839208,-450.0,0.00019726,2]
[359852197,1746373839218,-450.0,0.00019726,2]
[359852199,1746373839227,-450.0,0.00019726,2]
[359852201,1746373839237,-450.0,0.00019726,2]
[359852203,1746373839247,-450.0,0.00019726,2]
[359852205,1746373839256,-450.95,0.00019726,2]
[359852207,1746373839265,-450.0,0.00019726,2]
[359852209,1746373839275,-450.0,0.00019726,2]
[359852211,1746373839285,-450.0,0.00019726,2]
[359852213,1746373839294,-498.94,0.00019726,2]
[359852215,1746373839303,-450.0,0.00019726,2]
[359852217,1746373839312,-525.8019662,0.00019726,2]
[359852219,1746373839321,-450.0,0.00019726,2]
[359852221,1746373839330,-450.0,0.00019726,2]
[359852223,1746373839340,-450.0,0.00019726,2]
[359852225,1746373839349,-450.0,0.00019726,2]
[359852227,1746373839359,-470.0,0.00019726,2]
[359852229,1746373839369,-450.0,0.00019726,2]
[359852231,1746373839378,-450.0,0.00019726,2]
[359852233,1746373839388,-450.0,0.00019726,2]
[359852235,1746373839397,-450.0,0.00019726,2]
[359852237,1746373839407,-450.0,0.00019726,2]
[359852239,1746373839417,-450.0,0.00019726,2]
[359852241,1746373839426,-450.0,0.00019726,2]
[359852243,1746373839435,-450.0,0.00019726,2]
[359852245,1746373839445,-472.06857966,0.00019726,2]
[359852247,1746373839454,-450.0,0.00019726,2]
[359852249,1746373839463,-477.50471461,0.00019726,2]
[359852251,1746373839472,-471.40845704,0.00019726,2]
[359852253,1746373839482,-490.0,0.00019726,2]
[359852255,1746373839491,-450.0,0.00019726,2]
[359852275,1746373839673,-470.0,0.00019726,2]
[359852277,1746373839683,-450.0,0.00019726,2]
[359852279,1746373839692,-382.31383694,0.00019726,2]
[359852281,1746373839702,-470.0,0.00019726,2]
[359852283,1746373839711,-450.0,0.00019726,2]
[359852285,1746373839720,-450.0,0.00019726,2]
[359852287,1746373839730,-450.0,0.00019726,2]
[359852289,1746373839739,-450.0,0.00019726,2]
[359852291,1746373839748,-450.0,0.00019726,2]
[359852293,1746373839758,-450.0,0.00019726,2]
[359852295,1746373839767,-450.0,0.00019726,2]
[359852296,1746373839777,-450.0,0.00019726,2]
[359852299,1746373839786,-450.0,0.00019726,2]
[359852300,1746373839796,-514.01993599,0.00019726,2]
[359852302,1746373839805,-450.0,0.00019726,2]
[359852304,1746373839815,-539.67,0.00019726,2]
[359852306,1746373839824,-450.0,0.00019726,2]
[359852309,1746373839834,-450.0,0.00019726,2]
[359852311,1746373839843,-450.0,0.00019726,2]
[359852313,1746373839852,-450.0,0.00019726,2]
[359852314,1746373839862,-450.0,0.00019726,2]
[359852316,1746373839871,-450.0,0.00019726,2]
[359852318,1746373839881,-470.0,0.00019726,2]
[359852320,1746373839890,-450.0,0.00019726,2]
[359852322,1746373839899,-450.0,0.00019726,2]
[359852324,1746373839909,-450.0,0.00019726,2]
[359852326,1746373839919,-490.0,0.00019726,2]
[359852328,1746373839928,-450.0,0.00019726,2]
[359852330,1746373839937,-450.0,0.00019726,2]
[359852332,1746373839947,-450.0,0.00019726,2]
[359852334,1746373839956,-450.0,0.00019726,2]
[359852336,1746373839966,-450.0,0.00019726,2]
[359852338,1746373839975,-450.0,0.00019726,2]
[359852340,1746373839985,-450.0,0.00019726,2]
[359852342,1746373839997,-500.0,0.00019726,2]
[359852344,1746373840006,-450.0,0.00019726,2]
[359852346,1746373840016,-450.0,0.00019726,2]
[359852348,1746373840026,-450.0,0.00019726,2]
[359852350,1746373840036,-450.0,0.00019726,2]
[359852352,1746373840045,-470.0,0.00019726,2]
[359852354,1746373840054,-450.0,0.00019726,2]
[359852356,1746373840063,-450.0,0.00019726,2]
[359852358,1746373840073,-450.0,0.00019726,2]
[359852359,1746373840082,-450.0,0.00019726,2]
[359852361,1746373840091,-450.0,0.00019726,2]
[359852364,1746373840101,-450.0,0.00019726,2]
[359852365,1746373840110,-450.0,0.00019726,2]
[359852368,1746373840119,-450.0,0.00019726,2]
[359852370,1746373840129,-450.0,0.00019726,2]
[359852372,1746373840138,-450.0,0.00019726,2]
[359852374,1746373840148,-160.95871234,0.00019726,2]
[359852376,1746373840157,-450.0,0.00019726,2]
[359852377,1746373840167,-372.46769248,0.00019726,2]
[359852379,1746373840176,-450.0,0.00019726,2]
[359852381,1746373840186,-388.43624686,0.00019726,2]
[359852384,1746373840196,-450.0,0.00019726,2]
[359852385,1746373840205,-450.0,0.00019726,2]
[359852387,1746373840215,-450.0,0.00019726,2]
[359852389,1746373840225,-450.0,0.00019726,2]
[359852391,1746373840234,-533.425789,0.00019726,2]
[359852394,1746373840244,-450.0,0.00019726,2]
[359852395,1746373840253,-450.0,0.00019726,2]
[359852397,1746373840263,-450.0,0.00019726,2]
[359852399,1746373840272,-450.0,0.00019726,2]
[359852401,1746373840281,-450.0,0.00019726,2]
[359852403,1746373840291,-450.0,0.00019726,2]
[359852406,1746373840300,-181.01743101,0.00019726,2]
[359852407,1746373840309,-450.0,0.00019726,2]
[359852411,1746373840333,-450.0,0.00019726,2]
[359852412,1746373840342,-450.0,0.00019726,2]
[359852413,1746373840351,-450.0,0.00019726,2]
[359852414,1746373840360,-450.0,0.00019726,2]
[359852415,1746373840369,-450.0,0.00019726,2]